Workbook

Sheet 本级一般支出表2
A2: 2019年达州市通川区一般公共预算支出决算表
F3: 单位：万元
A4: 预 算 科 目 | B4: 年初 预算数 | C4: 变动 预算数 | D4: 决算数 | E4: 为预算 | F4: 为上年决算 | G4: 上年决算数
A5: 一般公共预算支出合计 | B5: 196,997 | C5: 347,134 | D5: 346,935 | E5: =D5/B5 -> 176.11% | F5: =D5/G5 -> 122.55% | G5: 283,095
A6: 一般公共服务支出 | B6: 28,756 | C6: 31,017 | D6: 31,017 | E6: =D6/B6 -> 107.86% | F6: =D6/G6 -> 101.93% | G6: 30,431
A7: 人大事务 | B7: 657 | C7: 692 | D7: 692 | E7: 105.33%
A8: 政协事务 | B8: 565 | C8: 626 | D8: 626 | E8: 110.80%
A9: 政府办公厅(室)及相关机构事务 | B9: 13,903 | C9: 11,506 | D9: 11,506 | E9: 82.76%
A10: 发展与改革事务 | B10: 618 | C10: 574 | D10: 574 | E10: 92.88%
A11: 统计信息事务 | B11: 489 | C11: 666 | D11: 666 | E11: 136.20%
A12: 财政事务 | B12: 2,084 | C12: 2,471 | D12: 2,471 | E12: 118.57%
A13: 税收事务 | B13: 320 | E13: 0.00%
A14: 审计事务 | B14: 555 | C14: 794 | D14: 794 | E14: 143.06%
A15: 海关事务
A16: 人力资源事务 | B16: 401 | C16: 711 | D16: 711 | E16: 177.31%
A17: 纪检监察事务 | B17: 1,598 | C17: 1,579 | D17: 1,579 | E17: 98.81%
A18: 商贸事务 | B18: 603 | C18: 922 | D18: 922 | E18: 152.90%
A19: 知识产权事务 | B19: 0 | C19: 0 | D19: 0
A20: 民族事务 | B20: 33 | C20: 15 | D20: 15 | E20: 45.45%
A21: 港澳台事务 | B21: 73 | C21: 68 | D21: 68 | E21: 93.15%
A22: 档案事务 | B22: 115 | C22: 159 | D22: 159 | E22: 138.26%
A23: 民主党派及工商联事务 | B23: 82 | C23: 114 | D23: 114 | E23: 139.02%
A24: 群众团体事务 | B24: 648 | C24: 901 | D24: 901 | E24: 139.04%
A25: 党委办公厅(室)及相关机构事务 | B25: 1,925 | C25: 1,599 | D25: 1,599 | E25: 83.06%
A26: 组织事务 | B26: 303 | C26: 551 | D26: 551 | E26: 181.85%
A27: 宣传事务 | B27: 227 | C27: 1,629 | D27: 1,629 | E27: 717.62%
A28: 统战事务 | B28: 114 | C28: 255 | D28: 255 | E28: 223.68%
A29: 对外联络事务 | B29: 0 | C29: 0 | D29: 0
A30: 其他共产党事务支出 | B30: 554 | C30: 1,197 | D30: 1,197 | E30: 216.06%
A31: 网信事务 | B31: 0 | C31: 0 | D31: 0
A32: 市场监督管理事务 | B32: 2,889 | C32: 3,967 | D32: 3,967 | E32: 137.31%
A33: 其他一般公共服务支出 | B33: 0 | C33: 21 | D33: 21
A34: 外交支出 | B34: 0 | C34: 0 | D34: 0
A35: 外交管理事务 | B35: 0 | C35: 0 | D35: 0
A36: 驻外机构 | B36: 0 | C36: 0 | D36: 0
A37: 对外援助 | B37: 0 | C37: 0 | D37: 0
A38: 国际组织 | B38: 0 | C38: 0 | D38: 0
A39: 对外合作与交流 | B39: 0 | C39: 0 | D39: 0
A40: 对外宣传 | B40: 0 | C40: 0 | D40: 0
A41: 边界勘界联检 | B41: 0 | C41: 0 | D41: 0
A42: 国际发展合作 | B42: 0 | C42: 0 | D42: 0
A43: 其他外交支出 | B43: 0 | C43: 0 | D43: 0
A44: 国防支出 | B44: 0 | C44: 0 | D44: 0 | F44: =D44/G44 -> 0.00% | G44: 25
A45: 现役部队 | B45: 0 | C45: 0 | D45: 0
A46: 国防科研事业 | B46: 0 | C46: 0 | D46: 0
A47: 专项工程 | B47: 0 | C47: 0 | D47: 0
A48: 国防动员 | B48: 0 | C48: 0 | D48: 0
A49: 其他国防支出 | B49: 0 | C49: 0 | D49: 0
A50: 公共安全支出 | B50: 15,463 | C50: 14,390 | D50: 14,390 | E50: 93.06% | F50: =D50/G50 -> 89.26% | G50: 16,122
A51: 武装警察部队 | B51: 0 | C51: 0 | D51: 0
A52: 公安 | B52: 9,298 | C52: 9,259 | D52: 9,259 | E52: 99.58%
A53: 国家安全 | B53: 0 | C53: 0 | D53: 0
A54: 检察 | B54: 1,202 | C54: 1,610 | D54: 1,610 | E54: 133.94%
A55: 法院 | B55: 2,143 | C55: 2,391 | D55: 2,391 | E55: 111.57%
A56: 司法 | B56: 789 | C56: 1,053 | D56: 1,053 | E56: 133.46%
A57: 监狱 | B57: 0 | C57: 0 | D57: 0
A58: 强制隔离戒毒 | B58: 0 | C58: 0 | D58: 0
A59: 国家保密 | B59: 31 | C59: 77 | D59: 77 | E59: 248.39%
A60: 缉私警察 | B60: 0 | C60: 0 | D60: 0
A61: 其他公共安全支出 | B61: 2,000 | C61: 0 | D61: 0 | E61: 0.00%
A62: 教育支出 | B62: 37,170 | C62: 63,971 | D62: 63,971 | E62: 172.10% | F62: =D62/G62 -> 110.10% | G62: 58,102
A63: 教育管理事务 | B63: 1,031 | C63: 1,563 | D63: 1,563 | E63: 151.60%
A64: 普通教育 | B64: 32,256 | C64: 55,862 | D64: 55,862 | E64: 173.18%
A65: 职业教育 | B65: 0 | C65: 334 | D65: 334
A66: 成人教育 | B66: 0 | C66: 0 | D66: 0
A67: 广播电视教育 | B67: 0 | C67: 16 | D67: 16
A68: 留学教育 | B68: 0 | C68: 0 | D68: 0
A69: 特殊教育 | B69: 70 | C69: 69 | D69: 69 | E69: 98.57%
A70: 进修及培训 | B70: 356 | C70: 860 | D70: 860 | E70: =D70/B70 -> 241.57%
A71: 教育费附加安排的支出 | B71: 3,400 | C71: 3,755 | D71: 3,755 | E71: 110.44%
A72: 其他教育支出 | B72: 57 | C72: 1,512 | D72: 1,512 | E72: 2652.63%
A73: 科学技术支出 | B73: 630 | C73: 772 | D73: 772 | E73: 122.54% | F73: =D73/G73 -> 95.90% | G73: 805
A74: 科学技术管理事务 | B74: 4 | C74: 0 | D74: 0 | E74: 0.00%
A75: 基础研究 | B75: 0 | C75: 0 | D75: 0
A76: 应用研究 | B76: 0 | C76: 0 | D76: 0
A77: 技术研究与开发 | B77: 430 | C77: 286 | D77: 286 | E77: 66.51%
A78: 科技条件与服务 | B78: 0 | C78: 6 | D78: 6
A79: 社会科学 | B79: 80 | C79: 180 | D79: 180 | E79: 225.00%
A80: 科学技术普及 | B80: 116 | C80: 299 | D80: 299 | E80: 257.76%
A81: 科技交流与合作 | B81: 0 | C81: 0 | D81: 0
A82: 科技重大项目 | B82: 0 | C82: 0 | D82: 0
A83: 其他科学技术支出 | B83: 0 | C83: 1 | D83: 1
A84: 文化旅游体育与传媒支出 | B84: 1,672 | C84: 4,367 | D84: 4,367 | E84: 261.18% | F84: =D84/G84 -> 112.15% | G84: 3,894
A85: 文化和旅游 | B85: 1,526 | C85: 1,475 | D85: 1,475 | E85: 96.66%
A86: 文物 | B86: 33 | C86: 674 | D86: 674 | E86: 2042.42%
A87: 体育 | B87: 113 | C87: 397 | D87: 397 | E87: 351.33%
A88: 新闻出版电影 | B88: 0 | C88: 5 | D88: 5
A89: 广播电视 | B89: 0 | C89: 224 | D89: 224
A90: 其他文化体育与传媒支出 | B90: 0 | C90: 1,592 | D90: 1,592
A91: 社会保障和就业支出 | B91: 37,801 | C91: 51,572 | D91: 51,572 | E91: 136.43% | F91: =D91/G91 -> 97.21% | G91: 53,050
A92: 人力资源和社会保障管理事务 | B92: 1,827 | C92: 2,017 | D92: 2,017 | E92: 110.40%
A93: 民政管理事务 | B93: 3,546 | C93: 865 | D93: 865 | E93: 24.39%
A94: 补充全国社会保障基金 | B94: 0 | C94: 0 | D94: 0
A95: 行政事业单位离退休 | B95: 10,924 | C95: 11,685 | D95: 11,685 | E95: 106.97%
A96: 企业改革补助 | B96: 0 | C96: 0 | D96: 0
A97: 就业补助 | B97: 0 | C97: 4,545 | D97: 4,545
A98: 抚恤 | B98: 6,950 | C98: 7,180 | D98: 7,180 | E98: 103.31%
A99: 退役安置 | B99: 61 | C99: 1,522 | D99: 1,522 | E99: 2495.08%
A100: 社会福利 | B100: 161 | C100: 2,512 | D100: 2,512 | E100: 1560.25%
A101: 残疾人事业 | B101: 45 | C101: 2,079 | D101: 2,079 | E101: 4620.00%
A102: 红十字事业 | B102: 0 | C102: 0 | D102: 0
A103: 最低生活保障 | B103: 7,050 | C103: 9,942 | D103: 9,942 | E103: 141.02%
A104: 临时救助 | B104: 6,339 | C104: 120 | D104: 120 | E104: 1.89%
A105: 特困人员救助供养 | B105: 125 | C105: 582 | D105: 582 | E105: 465.60%
A106: 补充道路交通事故社会救助基金 | B106: 0 | C106: 0 | D106: 0
A107: 其他生活救助 | B107: 0 | C107: 2,379 | D107: 2,379
A108: 财政对基本养老保险基金的补助 | B108: 0 | C108: 3,562 | D108: 3,562
A109: 财政对其他社会保险基金的补助 | B109: 0 | C109: 0 | D109: 0
A110: 退役军人管理事务 | B110: 180 | C110: 593 | D110: 593 | E110: 329.44%
A111: 其他社会保障和就业支出 | B111: 593 | C111: 1,989 | D111: 1,989 | E111: 335.41%
A112: 卫生健康支出 | B112: 9,700 | C112: 24,249 | D112: 24,249 | E112: 249.99% | F112: =D112/G112 -> 129.83% | G112: 18,678
A113: 卫生健康管理事务 | B113: 280 | C113: 1,072 | D113: 1,072 | E113: 382.86%
A114: 公立医院 | B114: 1,991 | C114: 1,384 | D114: 1,384 | E114: 69.51%
A115: 基层医疗卫生机构 | B115: 1,608 | C115: 3,119 | D115: 3,119 | E115: 193.97%
A116: 公共卫生 | B116: 507 | C116: 5,484 | D116: 5,484 | E116: 1081.66%
A117: 中医药 | B117: 0 | C117: 394 | D117: 394
A118: 计划生育事务 | B118: 43 | C118: 1,834 | D118: 1,834 | E118: 4265.12%
A119: 行政事业单位医疗 | B119: 3,791 | C119: 3,947 | D119: 3,947 | E119: 104.12%
A120: 财政对基本医疗保险基金的补助 | B120: 0 | C120: 0 | D120: 0
A121: 医疗救助 | B121: 900 | C121: 1,110 | D121: 1,110 | E121: 123.33%
A122: 优抚对象医疗 | B122: 300 | C122: 282 | D122: 282 | E122: 94.00%
A123: 医疗保障管理事务 | B123: 215 | C123: 92 | D123: 92 | E123: 42.79%
A124: 老龄卫生健康事务 | B124: 0 | C124: 0 | D124: 0
A125: 其他卫生健康支出 | B125: 65 | C125: 5,531 | D125: 5,531 | E125: 8509.23%
A126: 节能环保支出 | B126: 3,200 | C126: 3,683 | D126: 3,683 | E126: 115.09% | F126: =D126/G126 -> 104.19% | G126: 3,535
A127: 环境保护管理事务 | B127: 1,575 | C127: 1,023 | D127: 1,023 | E127: 64.95%
A128: 环境监测与监察 | B128: 0 | C128: 0 | D128: 0
A129: 污染防治 | B129: 560 | C129: 1,693 | D129: 1,693 | E129: 302.32%
A130: 自然生态保护 | B130: 0 | C130: 608 | D130: 608
A131: 天然林保护 | B131: 50 | C131: 104 | D131: 104 | E131: 208.00%
A132: 退耕还林 | B132: 0 | C132: 43 | D132: 43
A133: 风沙荒漠治理 | B133: 0 | C133: 0 | D133: 0
A134: 退牧还草 | B134: 0 | C134: 0 | D134: 0
A135: 已垦草原退耕还草 | B135: 0 | C135: 0 | D135: 0
A136: 能源节约利用 | B136: 0 | C136: 0 | D136: 0
A137: 污染减排 | B137: 0 | C137: 58 | D137: 58
A138: 可再生能源 | B138: 0 | C138: 122 | D138: 122
A139: 循环经济 | B139: 0 | C139: 0 | D139: 0
A140: 能源管理事务 | B140: 0 | C140: 0 | D140: 0
A141: 其他节能环保支出 | B141: 1,015 | C141: 32 | D141: 32 | E141: =D141/B141 -> 3.15%
A142: 城乡社区支出 | B142: 2,830 | C142: 5,369 | D142: 5,172 | E142: 182.76% | F142: =D142/G142 -> 111.49% | G142: 4,639
A143: 城乡社区管理事务 | B143: 1,059 | C143: 1,421 | D143: 1,421 | E143: 134.18%
A144: 城乡社区规划与管理 | B144: 946 | C144: 1,797 | D144: 1,600 | E144: 169.13%
A145: 城乡社区公共设施 | B145: 19 | C145: 555 | D145: 555 | E145: 2921.05%
A146: 城乡社区环境卫生 | B146: 254 | C146: 1,419 | D146: 1,419 | E146: 558.66%
A147: 建设市场管理与监督 | B147: 0 | C147: 85 | D147: 85
A148: 其他城乡社区支出 | B148: 552 | C148: 92 | D148: 92 | E148: =D148/B148 -> 16.67%
A149: 农林水支出 | B149: 18,620 | C149: 63,667 | D149: 63,667 | E149: =D149/B149 -> 341.93% | F149: =D149/G149 -> 136.16% | G149: 46,759
A150: 农业 | B150: 3,965 | C150: 17,225 | D150: 17,225 | E150: =D150/B150 -> 434.43%
A151: 林业和草原 | B151: 1,076 | C151: 3,873 | D151: 3,873 | E151: =D151/B151 -> 359.94%
A152: 水利 | B152: 2,001 | C152: 11,869 | D152: 11,869 | E152: =D152/B152 -> 593.15%
A153: 南水北调 | B153: 0 | C153: 0 | D153: 0
A154: 扶贫 | B154: 3,346 | C154: 20,568 | D154: 20,568 | E154: =D154/B154 -> 614.70%
A155: 农业综合开发 | B155: 0 | C155: 89 | D155: 89
A156: 农村综合改革 | B156: 7,170 | C156: 9,676 | D156: 9,676 | E156: =D156/B156 -> 134.95%
A157: 普惠金融发展支出 | B157: 68 | C157: 150 | D157: 150 | E157: =D157/B157 -> 220.59%
A158: 目标价格补贴 | B158: 0 | C158: 0 | D158: 0
A159: 其他农林水支出 | B159: 994 | C159: 217 | D159: 217 | E159: =D159/B159 -> 21.83%
A160: 交通运输支出 | B160: 3,200 | C160: 8,185 | D160: 8,185 | E160: =D160/B160 -> 255.78% | F160: =D160/G160 -> 119.52% | G160: 6,848
A161: 公路水路运输 | B161: 3,200 | C161: 7,004 | D161: 7,004 | E161: =D161/B161 -> 218.88%
A162: 铁路运输 | B162: 0 | C162: 0 | D162: 0
A163: 民用航空运输 | B163: 0 | C163: 0 | D163: 0
A164: 成品油价格改革对交通运输的补贴 | B164: 0 | C164: 529 | D164: 529
A165: 邮政业支出 | B165: 0 | C165: 0 | D165: 0
A166: 车辆购置税支出 | B166: 0 | C166: 552 | D166: 552
A167: 其他交通运输支出 | B167: 0 | C167: 100 | D167: 100
A168: 资源勘探信息等支出 | B168: 1,528 | C168: 2,053 | D168: 2,053 | E168: =D168/B168 -> 134.36% | F168: =D168/G168 -> 82.25% | G168: 2,496
A169: 资源勘探开发 | B169: 916 | C169: 0 | D169: 0 | E169: =D169/B169 -> 0.00%
A170: 制造业 | B170: 0 | C170: 792 | D170: 792
A171: 建筑业 | B171: 0 | C171: 0 | D171: 0
A172: 工业和信息产业监管 | B172: 300 | C172: 544 | D172: 544 | E172: =D172/B172 -> 181.33%
A173: 国有资产监管 | B173: 130 | C173: 224 | D173: 224 | E173: =D173/B173 -> 172.31%
A174: 支持中小企业发展和管理支出 | B174: 182 | C174: 493 | D174: 493 | E174: =D174/B174 -> 270.88%
A175: 其他资源勘探信息等支出 | B175: 0 | C175: 0 | D175: 0
A176: 商业服务业等支出 | B176: 900 | C176: 936 | D176: 936 | E176: =D176/B176 -> 104.00% | F176: =D176/G176 -> 56.49% | G176: 1,657
A177: 商业流通事务 | B177: 900 | C177: 935 | D177: 935 | E177: =D177/B177 -> 103.89%
A178: 涉外发展服务支出 | B178: 0 | C178: 0 | D178: 0
A179: 其他商业服务业等支出 | B179: 0 | C179: 1 | D179: 1
A180: 金融支出 | B180: 14 | C180: 16 | D180: 14 | E180: =D180/B180 -> 100.00% | F180: =D180/G180 -> 14.58% | G180: 96
A181: 金融部门行政支出 | B181: 0 | C181: 0 | D181: 0
A182: 金融部门监管支出 | B182: 14 | C182: 0 | D182: 0 | E182: =D182/B182 -> 0.00%
A183: 金融发展支出 | B183: 0 | C183: 0 | D183: 0
A184: 金融调控支出 | B184: 0 | C184: 0 | D184: 0
A185: 其他金融支出 | B185: 0 | C185: 16 | D185: 14
A186: 援助其他地区支出 | B186: 0 | C186: 0 | D186: 0
A187: 一般公共服务 | B187: 0 | C187: 0 | D187: 0
A188: 教育 | B188: 0 | C188: 0 | D188: 0
A189: 文化体育与传媒 | B189: 0 | C189: 0 | D189: 0
A190: 医疗卫生 | B190: 0 | C190: 0 | D190: 0
A191: 节能环保 | B191: 0 | C191: 0 | D191: 0
A192: 农业 | B192: 0 | C192: 0 | D192: 0
A193: 交通运输 | B193: 0 | C193: 0 | D193: 0
A194: 住房保障 | B194: 0 | C194: 0 | D194: 0
A195: 其他支出 | B195: 0 | C195: 0 | D195: 0
A196: 自然资源海洋气象等支出 | B196: 100 | C196: 820 | D196: 820 | E196: =D196/B196 -> 820.00% | F196: =D196/G196 -> 27.16% | G196: 3,019
A197: 自然资源事务 | B197: 100 | C197: 820 | D197: 820 | E197: =D197/B197 -> 820.00%
A198: 海洋管理事务 | B198: 0 | C198: 0 | D198: 0
A199: 测绘事务 | B199: 0 | C199: 0 | D199: 0
A200: 气象事务 | B200: 0 | C200: 0 | D200: 0
A201: 其他自然资源海洋气象等支出 | B201: 0 | C201: 0 | D201: 0
... 31 more rows
